[Event "Titled Tuesday Blitz June 14 Late 2022"]
[White "Korchmar, Vasiliy"]
[Black "Sjugirov, Sanan"]
[WhiteFideId "24131750"]
[BlackFideId "4189302"]
[WhiteElo "2370"]
[BlackElo "2602"]
[Result "1-0"]
[Round "03"]
[TimeControl "180+1"]
[Date "2022.06.14"]
[WhiteClock "0:00:06"]
[BlackClock "0:00:02"]

1. e4 {[%clk 0:03:00]}  c6 {[%clk 0:02:59]} 2. d4 {[%clk 0:03:00]}  d5 {[%clk 0:03:00]} 3. e5 {[%clk 0:03:01]}  Bf5 {[%clk 0:03:00]} 4. c4 {[%clk 0:03:01]}  e6 {[%clk 0:02:59]} 5. Nc3 {[%clk 0:03:01]}  Ne7 {[%clk 0:02:58]} 6. a3 {[%clk 0:03:01]}  dxc4 {[%clk 0:02:54]} 7. Bxc4 {[%clk 0:03:00]}  Nd7 {[%clk 0:02:54]} 8. Nge2 {[%clk 0:02:59]}  Nb6 {[%clk 0:02:53]} 9. Bd3 {[%clk 0:02:59]}  Bxd3 {[%clk 0:02:44]} 10. Qxd3 {[%clk 0:03:00]}  Nf5 {[%clk 0:02:44]} 11. O-O {[%clk 0:02:55]}  Be7 {[%clk 0:02:43]} 12. Be3 {[%clk 0:02:49]}  O-O {[%clk 0:02:42]} 13. Rad1 {[%clk 0:02:46]}  Qd7 {[%clk 0:02:38]} 14. Ne4 {[%clk 0:02:41]}  Nd5 {[%clk 0:02:35]} 15. Bc1 {[%clk 0:02:29]}  Rad8 {[%clk 0:02:34]} 16. Qh3 {[%clk 0:02:26]}  Rc8 {[%clk 0:01:25]} 17. Rd3 {[%clk 0:01:53]}  Qd8 {[%clk 0:01:24]} 18. Rfd1 {[%clk 0:01:51]}  a5 {[%clk 0:01:00]} 19. b3 {[%clk 0:01:39]}  b6 {[%clk 0:00:49]} 20. Kh1 {[%clk 0:01:33]}  c5 {[%clk 0:00:45]} 21. dxc5 {[%clk 0:01:32]}  bxc5 {[%clk 0:00:46]} 22. N2g3 {[%clk 0:01:25]}  Nxg3+ {[%clk 0:00:34]} 23. Rxg3 {[%clk 0:01:26]}  Kh8 {[%clk 0:00:13]} 24. Qg4 {[%clk 0:01:25]}  g6 {[%clk 0:00:08]} 25. Rh3 {[%clk 0:01:24]}  Qd7 {[%clk 0:00:03]} 26. Bg5 {[%clk 0:01:08]}  c4 {[%clk 0:00:03]} 27. Qh4 {[%clk 0:00:13]}  h5 {[%clk 0:00:03]} 28. g4 {[%clk 0:00:13]}  Bxg5 {[%clk 0:00:01]} 29. Qxg5 {[%clk 0:00:12]}  Qe7 {[%clk 0:00:02]} 30. Qh6+ {[%clk 0:00:10]}  Kg8 {[%clk 0:00:02]} 31. Ng5 {[%clk 0:00:10]}  f6 {[%clk 0:00:01]} 32. Qxg6+ {[%clk 0:00:08]}  Qg7 {[%clk 0:00:01]} 33. Qxg7+ {[%clk 0:00:09]}  Kxg7 {[%clk 0:00:02]} 34. Nxe6+ {[%clk 0:00:09]}  Kf7 {[%clk 0:00:02]} 35. Nxf8 {[%clk 0:00:10]}  c3 {[%clk 0:00:03]} 36. Nd7 {[%clk 0:00:06]}  c2 {[%clk 0:00:03]} 37. Rc1 {[%clk 0:00:06]}  Nf4 {[%clk 0:00:04]} 38. Re3 {[%clk 0:00:05]}  hxg4 {[%clk 0:00:04]} 39. exf6 {[%clk 0:00:05]}  Nd5 {[%clk 0:00:04]} 40. Re2 {[%clk 0:00:05]}  Nf4 {[%clk 0:00:04]} 41. Rexc2 {[%clk 0:00:05]}  Rd8 {[%clk 0:00:05]} 42. Ne5+ {[%clk 0:00:05]}  Kxf6 {[%clk 0:00:05]} 43. Nxg4+ {[%clk 0:00:06]}  Kf5 {[%clk 0:00:06]} 44. Ne3+ {[%clk 0:00:06]}  Ke4 {[%clk 0:00:06]} 45. Rc4+ {[%clk 0:00:07]}  Kf3 {[%clk 0:00:07]} 46. Rxf4+ {[%clk 0:00:07]}  Kxf4 {[%clk 0:00:08]} 47. Kg1 {[%clk 0:00:08]}  Kf3 {[%clk 0:00:09]} 48. Kf1 {[%clk 0:00:07]}  Rd3 {[%clk 0:00:09]} 49. Rb1 {[%clk 0:00:06]}  Rd2 {[%clk 0:00:09]} 50. Nd1 {[%clk 0:00:07]}  Ra2 {[%clk 0:00:09]} 51. b4 {[%clk 0:00:06]}  a4 {[%clk 0:00:09]} 52. b5 {[%clk 0:00:06]}  Rc2 {[%clk 0:00:08]} 53. b6 {[%clk 0:00:06]}  Rc8 {[%clk 0:00:05]} 54. b7 {[%clk 0:00:06]}  Rb8 {[%clk 0:00:04]} 55. Nc3 {[%clk 0:00:07]}  Rg8 {[%clk 0:00:02]} 56. b8=Q {[%clk 0:00:06]} 1-0


[Site "https://www.chess.com"]

[Event "Titled Tuesday Blitz June 14 Late 2022"]
[White "Kosakowski, Jakub"]
[Black "Ferreira, Vitor Hugo Vieira"]
[WhiteFideId "1185080"]
[BlackFideId "2119765"]
[WhiteElo "2476"]
[BlackElo "2165"]
[Result "1/2-1/2"]
[Round "03"]
[TimeControl "180+1"]
[Date "2022.06.15"]
[WhiteClock "0:00:05"]
[BlackClock "0:00:06"]

1. e4 {[%clk 0:03:00]}  c5 {[%clk 0:02:59]} 2. Nf3 {[%clk 0:03:00]}  d6 {[%clk 0:02:59]} 3. d4 {[%clk 0:03:00]}  cxd4 {[%clk 0:02:59]} 4. Nxd4 {[%clk 0:03:01]}  Nf6 {[%clk 0:02:59]} 5. Nc3 {[%clk 0:03:01]}  a6 {[%clk 0:03:00]} 6. Bg5 {[%clk 0:03:01]}  e6 {[%clk 0:02:55]} 7. f4 {[%clk 0:03:01]}  Be7 {[%clk 0:02:55]} 8. Qf3 {[%clk 0:03:01]}  h6 {[%clk 0:02:55]} 9. Bh4 {[%clk 0:03:01]}  Qc7 {[%clk 0:02:55]} 10. O-O-O {[%clk 0:02:58]}  Nbd7 {[%clk 0:02:55]} 11. Be2 {[%clk 0:02:57]}  Rg8 {[%clk 0:02:52]} 12. Rhf1 {[%clk 0:02:56]}  g5 {[%clk 0:02:45]} 13. Bg3 {[%clk 0:02:46]}  gxf4 {[%clk 0:02:19]} 14. Qxf4 {[%clk 0:02:47]}  e5 {[%clk 0:02:17]} 15. Nd5 {[%clk 0:02:47]}  exf4 {[%clk 0:02:08]} 16. Nxc7+ {[%clk 0:02:47]}  Kd8 {[%clk 0:02:09]} 17. Nxa8 {[%clk 0:02:28]}  fxg3 {[%clk 0:02:08]} 18. h3 {[%clk 0:02:28]}  Nxe4 {[%clk 0:01:59]} 19. Nf5 {[%clk 0:02:25]}  Bg5+ {[%clk 0:01:59]} 20. Kb1 {[%clk 0:02:23]}  Nd2+ {[%clk 0:01:56]} 21. Rxd2 {[%clk 0:02:23]}  Bxd2 {[%clk 0:01:57]} 22. Nxd6 {[%clk 0:02:23]}  Ke7 {[%clk 0:01:44]} 23. Nf5+ {[%clk 0:02:03]}  Kd8 {[%clk 0:01:39]} 24. Nd6 {[%clk 0:02:01]}  Ke7 {[%clk 0:01:37]} 25. Rd1 {[%clk 0:01:48]}  Kxd6 {[%clk 0:01:31]} 26. Rxd2+ {[%clk 0:01:48]}  Ke7 {[%clk 0:01:27]} 27. Nc7 {[%clk 0:01:47]}  Nf6 {[%clk 0:01:23]} 28. Bf3 {[%clk 0:01:45]}  b5 {[%clk 0:01:22]} 29. Kc1 {[%clk 0:01:34]}  Rd8 {[%clk 0:01:22]} 30. Rxd8 {[%clk 0:01:31]}  Kxd8 {[%clk 0:01:22]} 31. Nd5 {[%clk 0:01:32]}  Bb7 {[%clk 0:01:18]} 32. Nf4 {[%clk 0:01:19]}  Bxf3 {[%clk 0:01:17]} 33. gxf3 {[%clk 0:01:20]}  Nd5 {[%clk 0:01:14]} 34. Ng2 {[%clk 0:01:18]}  f5 {[%clk 0:01:11]} 35. Kd2 {[%clk 0:01:18]}  f4 {[%clk 0:01:10]} 36. Kd3 {[%clk 0:01:17]}  Kd7 {[%clk 0:01:09]} 37. Kd4 {[%clk 0:01:10]}  Kd6 {[%clk 0:00:58]} 38. c3 {[%clk 0:01:08]}  h5 {[%clk 0:00:47]} 39. b3 {[%clk 0:01:07]}  Ne3 {[%clk 0:00:27]} 40. Nxf4 {[%clk 0:00:57]}  g2 {[%clk 0:00:25]} 41. Ne2 {[%clk 0:00:56]}  Nc2+ {[%clk 0:00:14]} 42. Ke4 {[%clk 0:00:50]}  Ne1 {[%clk 0:00:15]} 43. f4 {[%clk 0:00:48]}  h4 {[%clk 0:00:14]} 44. Ke3 {[%clk 0:00:45]}  Kd5 {[%clk 0:00:12]} 45. f5 {[%clk 0:00:32]}  Ke5 {[%clk 0:00:12]} 46. Kf2 {[%clk 0:00:33]}  Nd3+ {[%clk 0:00:12]} 47. Kxg2 {[%clk 0:00:33]}  Kxf5 {[%clk 0:00:10]} 48. Kf3 {[%clk 0:00:33]}  Ne5+ {[%clk 0:00:09]} 49. Ke3 {[%clk 0:00:34]}  Ng6 {[%clk 0:00:02]} 50. Nd4+ {[%clk 0:00:27]}  Ke5 {[%clk 0:00:02]} 51. Nf3+ {[%clk 0:00:28]}  Kd5 {[%clk 0:00:03]} 52. a3 {[%clk 0:00:25]}  a5 {[%clk 0:00:03]} 53. Ng1 {[%clk 0:00:16]}  a4 {[%clk 0:00:03]} 54. c4+ {[%clk 0:00:14]}  Kc5 {[%clk 0:00:03]} 55. bxa4 {[%clk 0:00:07]}  bxa4 {[%clk 0:00:03]} 56. Kd3 {[%clk 0:00:04]}  Ne5+ {[%clk 0:00:03]} 57. Kc3 {[%clk 0:00:04]}  Nxc4 {[%clk 0:00:04]} 58. Nf3 {[%clk 0:00:04]}  Nxa3 {[%clk 0:00:04]} 59. Nxh4 {[%clk 0:00:04]}  Nb5+ {[%clk 0:00:05]} 60. Kb2 {[%clk 0:00:04]}  Nd6 {[%clk 0:00:05]} 61. Nf3 {[%clk 0:00:04]}  Ne4 {[%clk 0:00:06]} 62. h4 {[%clk 0:00:04]}  Nf6 {[%clk 0:00:06]} 63. Ka3 {[%clk 0:00:05]}  Kd5 {[%clk 0:00:06]} 64. Kxa4 {[%clk 0:00:05]}  Ke4 {[%clk 0:00:07]} 65. h5 {[%clk 0:00:05]}  Nxh5 {[%clk 0:00:06]} 1/2-1/2


[Site "https://www.chess.com"]

[Event "Titled Tuesday Blitz June 14 Late 2022"]
[White "Lagno, Kateryna"]
[Black "Karas, Marek"]
[WhiteFideId "14109336"]
[BlackFideId "14928558"]
[WhiteElo "2522"]
[BlackElo "2271"]
[Result "1/2-1/2"]
[Round "03"]
[TimeControl "180+1"]
[Date "2022.06.15"]
[WhiteClock "0:00:07"]
[BlackClock "0:00:15"]

1. e4 {[%clk 0:03:00]}  e6 {[%clk 0:02:46]} 2. d4 {[%clk 0:03:00]}  d5 {[%clk 0:02:46]} 3. Nd2 {[%clk 0:02:58]}  a6 {[%clk 0:02:46]} 4. Ngf3 {[%clk 0:02:57]}  c5 {[%clk 0:02:47]} 5. exd5 {[%clk 0:02:53]}  exd5 {[%clk 0:02:47]} 6. Bd3 {[%clk 0:02:44]}  Nf6 {[%clk 0:02:43]} 7. O-O {[%clk 0:02:42]}  Be7 {[%clk 0:02:43]} 8. dxc5 {[%clk 0:02:42]}  Bxc5 {[%clk 0:02:44]} 9. Re1+ {[%clk 0:02:41]}  Be7 {[%clk 0:02:45]} 10. Nb3 {[%clk 0:02:38]}  O-O {[%clk 0:02:44]} 11. Nbd4 {[%clk 0:02:38]}  Bg4 {[%clk 0:02:42]} 12. h3 {[%clk 0:02:37]}  Bh5 {[%clk 0:02:43]} 13. Nf5 {[%clk 0:02:32]}  Nc6 {[%clk 0:02:38]} 14. Nxe7+ {[%clk 0:02:30]}  Nxe7 {[%clk 0:02:39]} 15. Bg5 {[%clk 0:02:28]}  Nc6 {[%clk 0:02:37]} 16. c3 {[%clk 0:02:22]}  Qd6 {[%clk 0:02:36]} 17. Bh4 {[%clk 0:02:05]}  Rfe8 {[%clk 0:02:33]} 18. Bg3 {[%clk 0:02:03]}  Qc5 {[%clk 0:02:30]} 19. Qc2 {[%clk 0:01:56]}  Bg6 {[%clk 0:02:29]} 20. Rad1 {[%clk 0:01:41]}  Ne4 {[%clk 0:02:25]} 21. Bf4 {[%clk 0:01:41]}  Rac8 {[%clk 0:02:17]} 22. a3 {[%clk 0:01:30]}  Qb6 {[%clk 0:02:09]} 23. Be3 {[%clk 0:01:17]}  Qc7 {[%clk 0:02:05]} 24. Nh4 {[%clk 0:01:11]}  Rcd8 {[%clk 0:02:02]} 25. Nxg6 {[%clk 0:01:11]}  hxg6 {[%clk 0:02:02]} 26. c4 {[%clk 0:00:52]}  Nf6 {[%clk 0:01:55]} 27. cxd5 {[%clk 0:00:45]}  Nxd5 {[%clk 0:01:55]} 28. Bg5 {[%clk 0:00:43]}  Rxe1+ {[%clk 0:01:48]} 29. Rxe1 {[%clk 0:00:44]}  Nf6 {[%clk 0:01:43]} 30. Bxf6 {[%clk 0:00:33]}  gxf6 {[%clk 0:01:42]} 31. Bc4 {[%clk 0:00:32]}  Kg7 {[%clk 0:01:39]} 32. Ba2 {[%clk 0:00:30]}  Qd7 {[%clk 0:01:33]} 33. h4 {[%clk 0:00:22]}  Re8 {[%clk 0:01:32]} 34. Rxe8 {[%clk 0:00:20]}  Qxe8 {[%clk 0:01:32]} 35. Qc3 {[%clk 0:00:19]}  Ne5 {[%clk 0:01:18]} 36. Bd5 {[%clk 0:00:18]}  Qd7 {[%clk 0:01:14]} 37. Qb3 {[%clk 0:00:18]}  b5 {[%clk 0:01:05]} 38. g3 {[%clk 0:00:18]}  Qf5 {[%clk 0:00:53]} 39. Kg2 {[%clk 0:00:17]}  Nd3 {[%clk 0:00:46]} 40. f4 {[%clk 0:00:13]}  Nc5 {[%clk 0:00:38]} 41. Qd1 {[%clk 0:00:12]}  Nd3 {[%clk 0:00:29]} 42. Qb3 {[%clk 0:00:13]}  Nc5 {[%clk 0:00:24]} 43. Qd1 {[%clk 0:00:13]}  Qd7 {[%clk 0:00:24]} 44. Bf3 {[%clk 0:00:11]}  Qe7 {[%clk 0:00:22]} 45. Qe2 {[%clk 0:00:11]}  Qd6 {[%clk 0:00:22]} 46. h5 {[%clk 0:00:11]}  gxh5 {[%clk 0:00:21]} 47. Bxh5 {[%clk 0:00:12]}  Qd4 {[%clk 0:00:19]} 48. Bf3 {[%clk 0:00:12]}  Nd3 {[%clk 0:00:19]} 49. b3 {[%clk 0:00:10]}  Nc5 {[%clk 0:00:16]} 50. b4 {[%clk 0:00:09]}  Nd3 {[%clk 0:00:16]} 51. Be4 {[%clk 0:00:09]}  Nb2 {[%clk 0:00:14]} 52. Qg4+ {[%clk 0:00:08]}  Kf8 {[%clk 0:00:14]} 53. Qc8+ {[%clk 0:00:08]}  Kg7 {[%clk 0:00:14]} 54. Qg4+ {[%clk 0:00:08]}  Kf8 {[%clk 0:00:15]} 55. Qc8+ {[%clk 0:00:07]}  Kg7 {[%clk 0:00:15]} 56. Qg4+ {[%clk 0:00:07]} 1/2-1/2


[Site "https://www.chess.com"]

[Event "Titled Tuesday Blitz June 14 Late 2022"]
[White "Le Goff, Ronan"]
[Black "Sanal, Vahap"]
[WhiteFideId "612073"]
[BlackFideId "6300545"]
[WhiteElo "2276"]
[BlackElo "2574"]
[Result "0-1"]
[Round "03"]
[TimeControl "180+1"]
[Date "2022.06.14"]
[WhiteClock "0:00:42"]
[BlackClock "0:01:49"]

1. d4 {[%clk 0:03:00]}  d6 {[%clk 0:02:46]} 2. e4 {[%clk 0:02:59]}  Nf6 {[%clk 0:02:46]} 3. Nc3 {[%clk 0:02:58]}  e5 {[%clk 0:02:46]} 4. Nf3 {[%clk 0:02:57]}  Nbd7 {[%clk 0:02:45]} 5. Bc4 {[%clk 0:02:55]}  Be7 {[%clk 0:02:45]} 6. a4 {[%clk 0:02:55]}  c6 {[%clk 0:02:45]} 7. O-O {[%clk 0:02:55]}  O-O {[%clk 0:02:46]} 8. h3 {[%clk 0:02:55]}  h6 {[%clk 0:02:46]} 9. Re1 {[%clk 0:02:52]}  Re8 {[%clk 0:02:46]} 10. Ba2 {[%clk 0:02:39]}  exd4 {[%clk 0:02:40]} 11. Nxd4 {[%clk 0:02:38]}  Bf8 {[%clk 0:02:40]} 12. Bf4 {[%clk 0:02:30]}  Nc5 {[%clk 0:02:39]} 13. Qf3 {[%clk 0:02:24]}  Ne6 {[%clk 0:02:39]} 14. Nf5 {[%clk 0:02:18]}  Nxf4 {[%clk 0:02:38]} 15. Qxf4 {[%clk 0:02:19]}  Bxf5 {[%clk 0:02:35]} 16. Qxf5 {[%clk 0:02:16]}  Qb6 {[%clk 0:02:33]} 17. Bb3 {[%clk 0:02:10]}  Re5 {[%clk 0:02:30]} 18. Qf3 {[%clk 0:02:05]}  Rae8 {[%clk 0:02:30]} 19. Rad1 {[%clk 0:02:01]}  d5 {[%clk 0:02:29]} 20. Qe3 {[%clk 0:01:45]}  Bc5 {[%clk 0:02:28]} 21. Qf4 {[%clk 0:01:38]}  Nxe4 {[%clk 0:02:22]} 22. Nxe4 {[%clk 0:01:31]}  Rxe4 {[%clk 0:02:21]} 23. Rxe4 {[%clk 0:01:20]}  Rxe4 {[%clk 0:02:22]} 24. Qf5 {[%clk 0:01:16]}  g6 {[%clk 0:02:20]} 25. Qf3 {[%clk 0:01:06]}  Qc7 {[%clk 0:02:05]} 26. c4 {[%clk 0:00:57]}  Rf4 {[%clk 0:02:04]} 27. Qc3 {[%clk 0:00:54]}  Bxf2+ {[%clk 0:02:02]} 28. Kh1 {[%clk 0:00:53]}  d4 {[%clk 0:02:02]} 29. Qd3 {[%clk 0:00:48]}  c5 {[%clk 0:01:59]} 30. Rf1 {[%clk 0:00:47]}  Be3 {[%clk 0:01:58]} 31. Bc2 {[%clk 0:00:47]}  Rxf1+ {[%clk 0:01:58]} 32. Qxf1 {[%clk 0:00:48]}  Qg3 {[%clk 0:01:58]} 33. b3 {[%clk 0:00:47]}  Bf4 {[%clk 0:01:58]} 34. Kg1 {[%clk 0:00:47]}  Qh2+ {[%clk 0:01:57]} 35. Kf2 {[%clk 0:00:47]}  Qg3+ {[%clk 0:01:55]} 36. Kg1 {[%clk 0:00:47]}  b6 {[%clk 0:01:49]} 37. Qf3 {[%clk 0:00:44]}  Qe1+ {[%clk 0:01:48]} 38. Qf1 {[%clk 0:00:42]}  Be3+ {[%clk 0:01:49]} 0-1


[Site "https://www.chess.com"]

[Event "Titled Tuesday Blitz June 14 Late 2022"]
[White "Marin Ramirez, Gerardo"]
[Black "Pesotskiy, Mikhail"]
[WhiteFideId "3901068"]
[BlackFideId "34164453"]
[WhiteElo "1920"]
[BlackElo "2010"]
[Result "1/2-1/2"]
[Round "03"]
[TimeControl "180+1"]
[Date "2022.06.15"]
[WhiteClock "0:00:00"]
[BlackClock "0:00:05"]

1. d4 {[%clk 0:02:59]}  Nf6 {[%clk 0:03:00]} 2. Nf3 {[%clk 0:02:58]}  e6 {[%clk 0:03:00]} 3. c4 {[%clk 0:02:57]}  c5 {[%clk 0:03:01]} 4. g3 {[%clk 0:02:54]}  cxd4 {[%clk 0:03:00]} 5. Nxd4 {[%clk 0:02:55]}  Nc6 {[%clk 0:03:01]} 6. Bg2 {[%clk 0:02:54]}  Bc5 {[%clk 0:02:58]} 7. Nc2 {[%clk 0:02:53]}  d5 {[%clk 0:02:57]} 8. cxd5 {[%clk 0:02:49]}  Nxd5 {[%clk 0:02:58]} 9. O-O {[%clk 0:02:47]}  O-O {[%clk 0:02:58]} 10. e4 {[%clk 0:02:43]}  Nb6 {[%clk 0:02:52]} 11. Qe2 {[%clk 0:02:42]}  e5 {[%clk 0:02:52]} 12. Rd1 {[%clk 0:02:40]}  Qe7 {[%clk 0:02:50]} 13. Nc3 {[%clk 0:02:39]}  Nd4 {[%clk 0:02:46]} 14. Nxd4 {[%clk 0:01:59]}  exd4 {[%clk 0:02:46]} 15. Nb5 {[%clk 0:01:56]}  Rd8 {[%clk 0:02:47]} 16. b4 {[%clk 0:01:54]}  Bxb4 {[%clk 0:02:43]} 17. Nxd4 {[%clk 0:01:54]}  Bc3 {[%clk 0:02:41]} 18. Bb2 {[%clk 0:01:55]}  Bxb2 {[%clk 0:02:37]} 19. Qxb2 {[%clk 0:01:54]}  Be6 {[%clk 0:02:31]} 20. Nf5 {[%clk 0:01:37]}  Bxf5 {[%clk 0:02:12]} 21. exf5 {[%clk 0:01:38]}  h6 {[%clk 0:01:59]} 22. Re1 {[%clk 0:01:37]}  Qd7 {[%clk 0:01:54]} 23. f6 {[%clk 0:01:33]}  Re8 {[%clk 0:01:54]} 24. fxg7 {[%clk 0:01:30]}  Rxe1+ {[%clk 0:01:54]} 25. Rxe1 {[%clk 0:01:29]}  Re8 {[%clk 0:01:55]} 26. Rxe8+ {[%clk 0:01:26]}  Qxe8 {[%clk 0:01:56]} 27. Bxb7 {[%clk 0:01:25]}  Qe7 {[%clk 0:01:48]} 28. Bf3 {[%clk 0:01:15]}  Nc4 {[%clk 0:01:40]} 29. Qd4 {[%clk 0:01:08]}  Ne5 {[%clk 0:01:37]} 30. Bd5 {[%clk 0:01:06]}  Qf6 {[%clk 0:01:30]} 31. Qxa7 {[%clk 0:00:52]}  Kxg7 {[%clk 0:01:24]} 32. Kg2 {[%clk 0:00:49]}  Ng4 {[%clk 0:01:20]} 33. h3 {[%clk 0:00:38]}  Ne5 {[%clk 0:01:17]} 34. Qd4 {[%clk 0:00:38]}  Kf8 {[%clk 0:01:02]} 35. f4 {[%clk 0:00:31]}  Nd7 {[%clk 0:01:03]} 36. Qxf6 {[%clk 0:00:31]}  Nxf6 {[%clk 0:01:04]} 37. Bc6 {[%clk 0:00:30]}  Ke7 {[%clk 0:01:02]} 38. a4 {[%clk 0:00:30]}  Kd6 {[%clk 0:01:03]} 39. Bf3 {[%clk 0:00:27]}  Kc5 {[%clk 0:01:02]} 40. g4 {[%clk 0:00:23]}  Nh7 {[%clk 0:00:56]} 41. Be4 {[%clk 0:00:21]}  Nf8 {[%clk 0:00:56]} 42. Bc2 {[%clk 0:00:19]}  Ne6 {[%clk 0:00:52]} 43. Kg3 {[%clk 0:00:15]}  Nd4 {[%clk 0:00:49]} 44. Bd1 {[%clk 0:00:14]}  Ne6 {[%clk 0:00:45]} 45. h4 {[%clk 0:00:13]}  f6 {[%clk 0:00:46]} 46. g5 {[%clk 0:00:10]}  fxg5 {[%clk 0:00:35]} 47. fxg5 {[%clk 0:00:11]}  hxg5 {[%clk 0:00:35]} 48. h5 {[%clk 0:00:08]}  Kd6 {[%clk 0:00:06]} 49. Kg4 {[%clk 0:00:07]}  Ke5 {[%clk 0:00:06]} 50. h6 {[%clk 0:00:05]}  Kf6 {[%clk 0:00:06]} 51. Bc2 {[%clk 0:00:05]}  Nd4 {[%clk 0:00:04]} 52. a5 {[%clk 0:00:02]}  Nxc2 {[%clk 0:00:02]} 53. a6 {[%clk 0:00:03]}  Ne3+ {[%clk 0:00:03]} 54. Kh5 {[%clk 0:00:02]}  Nd5 {[%clk 0:00:04]} 55. a7 {[%clk 0:00:01]}  Nc7 {[%clk 0:00:04]} 56. h7 {[%clk 0:00:01]}  Kg7 {[%clk 0:00:05]} 57. Kxg5 {[%clk 0:00:01]}  Kxh7 {[%clk 0:00:05]} 58. Kf6 {[%clk 0:00:02]}  Kg8 {[%clk 0:00:05]} 59. Ke7 {[%clk 0:00:02]}  Kg7 {[%clk 0:00:06]} 60. Kd7 {[%clk 0:00:03]}  Na8 {[%clk 0:00:04]} 61. Kc6 {[%clk 0:00:04]}  Kf7 {[%clk 0:00:04]} 62. Kb7 {[%clk 0:00:05]}  Ke7 {[%clk 0:00:04]} 63. Kb8 {[%clk 0:00:05]}  Kd7 {[%clk 0:00:05]} 64. Kxa8 {[%clk 0:00:00]}  Kc8 {[%clk 0:00:05]} 1/2-1/2


[Site "https://www.chess.com"]

[Event "Titled Tuesday Blitz June 14 Late 2022"]
[White "Martinez Alcantara, Jose Eduardo"]
[Black "Hnydiuk, Aleksander"]
[WhiteFideId "3805662"]
[BlackFideId "1109057"]
[WhiteElo "2703"]
[BlackElo "2374"]
[Result "1-0"]
[Round "03"]
[TimeControl "180+1"]
[Date "2022.06.14"]
[WhiteClock "0:00:46"]
[BlackClock "0:00:54"]

1. e4 {[%clk 0:03:00]}  c5 {[%clk 0:02:59]} 2. Nf3 {[%clk 0:03:01]}  e6 {[%clk 0:03:00]} 3. c3 {[%clk 0:03:01]}  d5 {[%clk 0:02:58]} 4. exd5 {[%clk 0:03:02]}  Qxd5 {[%clk 0:02:59]} 5. d4 {[%clk 0:03:03]}  Nf6 {[%clk 0:02:59]} 6. Be3 {[%clk 0:03:03]}  cxd4 {[%clk 0:02:57]} 7. cxd4 {[%clk 0:03:04]}  Bb4+ {[%clk 0:02:57]} 8. Nc3 {[%clk 0:03:05]}  O-O {[%clk 0:02:56]} 9. Bd3 {[%clk 0:03:05]}  Bd7 {[%clk 0:02:55]} 10. Qe2 {[%clk 0:02:33]}  Ne4 {[%clk 0:02:48]} 11. O-O {[%clk 0:02:25]}  Nxc3 {[%clk 0:02:42]} 12. bxc3 {[%clk 0:02:25]}  Bxc3 {[%clk 0:02:43]} 13. Rab1 {[%clk 0:02:15]}  Ba5 {[%clk 0:02:32]} 14. Ne5 {[%clk 0:02:08]}  Bc6 {[%clk 0:02:26]} 15. Nxc6 {[%clk 0:01:42]}  Nxc6 {[%clk 0:02:24]} 16. Rb5 {[%clk 0:01:42]}  Qd7 {[%clk 0:02:08]} 17. Qg4 {[%clk 0:01:31]}  f5 {[%clk 0:01:42]} 18. Qe2 {[%clk 0:01:29]}  Bb6 {[%clk 0:01:39]} 19. d5 {[%clk 0:01:29]}  Ne5 {[%clk 0:01:15]} 20. Bc2 {[%clk 0:00:56]}  Bxe3 {[%clk 0:01:07]} 21. dxe6 {[%clk 0:00:55]}  Bxf2+ {[%clk 0:00:54]} 22. Rxf2 {[%clk 0:00:52]}  Qd4 {[%clk 0:00:54]} 23. Qxe5 {[%clk 0:00:46]} 1-0


[Site "https://www.chess.com"]

[Event "Titled Tuesday Blitz June 14 Late 2022"]
[White "Mekhitarian, Krikor Sevag"]
[Black "Wachinger, Guenther"]
[WhiteFideId "2107660"]
[BlackFideId "4604261"]
[WhiteElo "2611"]
[BlackElo "2212"]
[Result "0-1"]
[Round "03"]
[TimeControl "180+1"]
[Date "2022.06.14"]
[WhiteClock "0:00:01"]
[BlackClock "0:00:02"]

1. d4 {[%clk 0:03:00]}  d5 {[%clk 0:02:54]} 2. Nf3 {[%clk 0:03:00]}  e6 {[%clk 0:02:53]} 3. g3 {[%clk 0:02:59]}  Nf6 {[%clk 0:02:53]} 4. Bg2 {[%clk 0:02:59]}  Be7 {[%clk 0:02:53]} 5. O-O {[%clk 0:02:59]}  O-O {[%clk 0:02:53]} 6. b3 {[%clk 0:02:58]}  c6 {[%clk 0:02:49]} 7. c4 {[%clk 0:02:57]}  b6 {[%clk 0:02:50]} 8. Nbd2 {[%clk 0:02:57]}  Bb7 {[%clk 0:02:49]} 9. Bb2 {[%clk 0:02:55]}  Nbd7 {[%clk 0:02:47]} 10. Rc1 {[%clk 0:02:46]}  Rc8 {[%clk 0:02:45]} 11. Re1 {[%clk 0:01:59]}  c5 {[%clk 0:02:44]} 12. cxd5 {[%clk 0:01:52]}  Nxd5 {[%clk 0:02:31]} 13. dxc5 {[%clk 0:01:30]}  Nxc5 {[%clk 0:02:28]} 14. Nc4 {[%clk 0:01:28]}  Nb4 {[%clk 0:02:10]} 15. Ra1 {[%clk 0:01:07]}  Qxd1 {[%clk 0:02:05]} 16. Rexd1 {[%clk 0:01:06]}  Rfd8 {[%clk 0:02:03]} 17. Nfe5 {[%clk 0:00:46]}  Bxg2 {[%clk 0:01:58]} 18. Kxg2 {[%clk 0:00:47]}  Rxd1 {[%clk 0:01:50]} 19. Rxd1 {[%clk 0:00:48]}  Nxa2 {[%clk 0:01:51]} 20. Ba3 {[%clk 0:00:44]}  Nc3 {[%clk 0:01:32]} 21. Re1 {[%clk 0:00:30]}  Bf6 {[%clk 0:01:20]} 22. Bxc5 {[%clk 0:00:25]}  Rxc5 {[%clk 0:01:13]} 23. Nd3 {[%clk 0:00:23]}  Rc8 {[%clk 0:00:38]} 24. Nd6 {[%clk 0:00:20]}  Rd8 {[%clk 0:00:36]} 25. Nc4 {[%clk 0:00:18]}  h6 {[%clk 0:00:36]} 26. Kf3 {[%clk 0:00:17]}  b5 {[%clk 0:00:25]} 27. Na5 {[%clk 0:00:17]}  Nd5 {[%clk 0:00:21]} 28. Nc6 {[%clk 0:00:16]}  Rd7 {[%clk 0:00:18]} 29. Rd1 {[%clk 0:00:14]}  Rc7 {[%clk 0:00:18]} 30. Na5 {[%clk 0:00:11]}  Bc3 {[%clk 0:00:16]} 31. e4 {[%clk 0:00:10]}  Bxa5 {[%clk 0:00:09]} 32. exd5 {[%clk 0:00:11]}  exd5 {[%clk 0:00:10]} 33. Nf4 {[%clk 0:00:02]}  Rc3+ {[%clk 0:00:09]} 34. Kg4 {[%clk 0:00:03]}  Rxb3 {[%clk 0:00:09]} 35. Rxd5 {[%clk 0:00:04]}  Bb6 {[%clk 0:00:08]} 36. Rd7 {[%clk 0:00:04]}  Rc3 {[%clk 0:00:06]} 37. Nd5 {[%clk 0:00:04]}  Rc4+ {[%clk 0:00:05]} 38. Kf5 {[%clk 0:00:04]}  Rc5 {[%clk 0:00:05]} 39. Ke4 {[%clk 0:00:03]}  Rc4+ {[%clk 0:00:04]} 40. Kf5 {[%clk 0:00:03]}  g6+ {[%clk 0:00:03]} 41. Kf6 {[%clk 0:00:02]}  Rc6+ {[%clk 0:00:03]} 42. Ke5 {[%clk 0:00:01]}  Re6+ {[%clk 0:00:03]} 43. Kf4 {[%clk 0:00:02]}  b4 {[%clk 0:00:02]} 44. Rb7 {[%clk 0:00:02]}  b3 {[%clk 0:00:02]} 45. Rb8+ {[%clk 0:00:01]}  Kg7 {[%clk 0:00:02]} 0-1


[Site "https://www.chess.com"]